[Event "56th Biel Festival Rapid 2023"]
[Site "Biel"]
[Date "2024.04.13"]
[Round "2.43"]
[White "Schaer, Bryan"]
[Black "Binzegger, Urs"]
[Result "1-0"]
[WhiteElo "1283"]
[BlackElo "1828"]
[PlyCount "93"]
[EventDate "2023.07.16"]
[EventType "swiss"]
[EventCountry "SUI"]
[TimeControl "900+5"]

1. e4 {[%emt 0:00:04]} e5 {[%emt 0:00:02]} 2. Nf3 {[%emt 0:00:01]} Nc6 {[%emt 0:00:02]} 3. d4 {[%emt 0:00:03]} exd4 {[%emt 0:00:02]} 4. Nxd4 {[%emt 0:00:02]} Be7 {[%emt 0:00:03]} 5. Be3 {[%emt 0:00:09]} Nf6 {[%emt 0:00:01]} 6. Nxc6 {[%emt 0:00:11]} bxc6 {[%emt 0:00:04]} 7. e5 {[%emt 0:00:02]} Nd5 {[%emt 0:00:01]} 8. Bd2 {[%emt 0:00:17]} O-O {[%emt 0:00:29]} 9. Nc3 {[%emt 0:00:37]} Rb8 {[%emt 0:00:16]} 10. Nxd5 {[%emt 0:00:25]} cxd5 {[%emt 0:00:01]} 11. Bc3 {[%emt 0:00:23]} c5 {[%emt 0:00:50]} 12. Qxd5 {[%emt 0:00:26]} Bb7 {[%emt 0:00:02]} 13. Qd1 {[%emt 0:00:48]} d5 {[%emt 0:00:16]} 14. exd6 {[%emt 0:02:53]} Bxd6 {[%emt 0:00:15]} 15. Qg4 {[%emt 0:00:18]} Qe7+ {[%emt 0:01:31]} 16. Be2 {[%emt 0:01:06]} f5 {[%emt 0:00:24]} 17. Qc4+ {[%emt 0:00:43]} Kh8 {[%emt 0:00:13]} 18. O-O {[%emt 0:00:42]} Qg5 {[%emt 0:01:04]} 19. f3 {[%emt 0:00:56]} Rbe8 {[%emt 0:00:51]} 20. Rad1 {[%emt 0:01:38]} Qe3+ {[%emt 0:00:58]} 21. Rf2 {[%emt 0:01:29]} Bxh2+ {[%emt 0:00:32]} 22. Kxh2 {[%emt 0:00:04]} Qxf2 {[%emt 0:02:40]} 23. Bxg7+ {[%emt 0:01:04]} Kxg7 {[%emt 0:00:03]} 24. Rd7+ {[%emt 0:00:06]} Kh8 {[%emt 0:00:07]} 25. Qc3+ {[%emt 0:00:13]} Qd4 {[%emt 0:00:53]} 26. Rxd4 {[%emt 0:00:01]} cxd4 {[%emt 0:00:01]} 27. Qxd4+ {[%emt 0:00:02]} Kg8 {[%emt 0:00:04]} 28. Bc4+ {[%emt 0:00:01]} Rf7 {[%emt 0:00:01]} 29. Bxf7+ {[%emt 0:00:06]} Kxf7 {[%emt 0:00:02]} 30. Qd7+ {[%emt 0:00:05]} Re7 {[%emt 0:00:05]} 31. Qxf5+ {[%emt 0:00:00]} Ke8 {[%emt 0:00:00]} 32. Qb5+ {[%emt 0:00:06]} Kf7 {[%emt 0:00:08]} 33. Qb3+ {[%emt 0:00:16]} Kf8 {[%emt 0:00:07]} 34. Qa3 {[%emt 0:00:27]} Kf7 {[%emt 0:00:05]} 35. g4 {[%emt 0:00:11]} a6 {[%emt 0:00:29]} 36. Kg3 {[%emt 0:00:05]} Kg7 {[%emt 0:00:04]} 37. Qc3+ {[%emt 0:00:05]} Kf7 {[%emt 0:00:04]} 38. g5 {[%emt 0:00:13]} Ke8 {[%emt 0:00:37]} 39. Kg4 {[%emt 0:00:18]} Bc8+ {[%emt 0:00:14]} 40. Qxc8+ {[%emt 0:00:05]} Kf7 {[%emt 0:00:08]} 41. f4 {[%emt 0:00:12]} Kg7 {[%emt 0:00:05]} 42. Qc3+ {[%emt 0:00:03]} Kf7 {[%emt 0:00:01]} 43. Qf6+ {[%emt 0:00:07]} Ke8 {[%emt 0:00:01]} 44. Qc6+ {[%emt 0:00:15]} Kf7 {[%emt 0:00:03]} 45. Qxa6 {[%emt 0:00:06]} Re1 {[%emt 0:00:04]} 46. Qc4+ {[%emt 0:00:03]} Kf8 {[%emt 0:00:12]} 47. Qb4+ {[%emt 0:00:04]} 1-0

[Event "56th Biel Festival Rapid 2023"]
[Site "Biel"]
[Date "2024.04.13"]
[Round "2.44"]
[White "Schreiber, Edwin"]
[Black "Wilhelm, Marco"]
[Result "1-0"]
[WhiteElo "1772"]
[BlackElo "1231"]
[PlyCount "25"]
[EventDate "2023.07.16"]
[EventType "swiss"]
[EventCountry "SUI"]
[TimeControl "900+5"]

1. Nf3 {[%emt 0:00:00]} e6 {[%emt 0:00:03]} 2. e4 {[%emt 0:00:00]} d5 {[%emt 0:00:05]} 3. e5 {[%emt 0:00:02]} c5 {[%emt 0:00:02]} 4. d4 {[%emt 0:00:16]} Ne7 {[%emt 0:00:17]} 5. Bd3 {[%emt 0:00:11]} Bd7 {[%emt 0:00:14]} 6. h4 {[%emt 0:00:31]} Nec6 {[%emt 0:00:11]} 7. O-O {[%emt 0:00:27]} Be7 {[%emt 0:00:34]} 8. c3 {[%emt 0:00:06]} O-O {[%emt 0:00:26]} 9. g3 {[%emt 0:00:06]} h6 {[%emt 0:00:31]} 10. Ng5 {[%emt 0:00:16]} Re8 {[%emt 0:00:29]} 11. Qh5 {[%emt 0:00:35]} Kh8 {[%emt 0:00:21]} 12. Qg6 {[%emt 0:00:20]} hxg5 {[%emt 0:00:06]} 13. Qh7# {[%emt 0:01:07]} 1-0

[Event "56th Biel Festival Rapid 2023"]
[Site "Biel"]
[Date "2024.04.13"]
[Round "2.45"]
[White "Begdullayeva, Karina"]
[Black "Tureshbayev, Anuar"]
[Result "0-1"]
[WhiteElo "1034"]
[BlackElo "1845"]
[PlyCount "61"]
[EventDate "2023.07.16"]
[EventType "swiss"]
[EventCountry "SUI"]
[TimeControl "900+5"]

1. e4 {[%emt 0:00:05]} c6 {[%emt 0:00:02]} 2. d4 {[%emt 0:00:05]} d5 {[%emt 0:00:03]} 3. exd5 {[%emt 0:00:02]} cxd5 {[%emt 0:00:02]} 4. Nc3 {[%emt 0:00:03]} Nf6 {[%emt 0:00:04]} 5. Nf3 {[%emt 0:00:03]} Bg4 {[%emt 0:00:01]} 6. Be2 {[%emt 0:00:04]} Nc6 {[%emt 0:00:01]} 7. h3 {[%emt 0:00:08]} Bh5 {[%emt 0:00:03]} 8. Bg5 {[%emt 0:00:07]} e6 {[%emt 0:00:03]} 9. Qd2 {[%emt 0:00:07]} Be7 {[%emt 0:00:02]} 10. O-O-O {[%emt 0:00:16]} Ne4 {[%emt 0:00:11]} 11. Bxe7 {[%emt 0:00:14]} Qxe7 {[%emt 0:00:03]} 12. Nxe4 {[%emt 0:00:05]} dxe4 {[%emt 0:00:02]} 13. Ne5 {[%emt 0:00:16]} Nxe5 {[%emt 0:00:15]} 14. dxe5 {[%emt 0:00:05]} Bxe2 {[%emt 0:00:04]} 15. Qxe2 {[%emt 0:00:03]} O-O {[%emt 0:00:03]} 16. g4 {[%emt 0:00:10]} Rac8 {[%emt 0:00:19]} 17. Qxe4 {[%emt 0:00:05]} Rc5 {[%emt 0:00:03]} 18. h4 {[%emt 0:00:05]} Rfc8 {[%emt 0:00:03]} 19. c3 {[%emt 0:00:02]} Qc7 {[%emt 0:00:09]} 20. Rd3 {[%emt 0:00:05]} Rxe5 {[%emt 0:00:04]} 21. Qf3 {[%emt 0:00:13]} b5 {[%emt 0:00:26]} 22. g5 {[%emt 0:00:08]} b4 {[%emt 0:00:01]} 23. Rg1 {[%emt 0:00:27]} bxc3 {[%emt 0:00:03]} 24. bxc3 {[%emt 0:00:02]} Qc5 {[%emt 0:00:08]} 25. Kc2 {[%emt 0:00:39]} Qa3 {[%emt 0:00:08]} 26. Qb7 {[%emt 0:00:22]} Qxa2+ {[%emt 0:00:03]} 27. Qb2 {[%emt 0:00:25]} Re2+ {[%emt 0:00:01]} 28. Rd2 {[%emt 0:00:06]} Rxd2+ {[%emt 0:00:03]} 29. Kxd2 {[%emt 0:00:05]} Qxb2+ {[%emt 0:00:02]} 30. Kd1 {[%emt 0:00:03]} Rxc3 {[%emt 0:00:03]} 31. Ke1 {[%emt 0:00:11]} 0-1

[Event "56th Biel Festival Rapid 2023"]
[Site "Biel"]
[Date "2024.04.13"]
[Round "2.46"]
[White "Kleinert, Juergen"]
[Black "Begdullayeva, Diana"]
[Result "1-0"]
[WhiteElo "1802"]
[BlackElo "1194"]
[PlyCount "39"]
[EventDate "2023.07.16"]
[EventType "swiss"]
[EventCountry "SUI"]
[TimeControl "900+5"]

1. e4 {[%emt 0:00:04]} c5 {[%emt 0:00:02]} 2. c3 {[%emt 0:00:02]} Nc6 {[%emt 0:00:18]} 3. d4 {[%emt 0:00:02]} cxd4 {[%emt 0:00:14]} 4. cxd4 {[%emt 0:00:01]} e6 {[%emt 0:00:26]} 5. d5 {[%emt 0:00:39]} exd5 {[%emt 0:00:25]} 6. exd5 {[%emt 0:00:02]} Ne5 {[%emt 0:01:03]} 7. Qe2 {[%emt 0:02:22]} Qf6 {[%emt 0:00:54]} 8. f4 {[%emt 0:00:34]} Bb4+ {[%emt 0:01:08]} 9. Nc3 {[%emt 0:00:03]} Bxc3+ {[%emt 0:00:28]} 10. bxc3 {[%emt 0:00:02]} d6 {[%emt 0:00:14]} 11. fxe5 {[%emt 0:00:38]} dxe5 {[%emt 0:00:07]} 12. Nf3 {[%emt 0:00:17]} Bg4 {[%emt 0:00:30]} 13. Qxe5+ {[%emt 0:00:13]} Qxe5+ {[%emt 0:00:13]} 14. Nxe5 {[%emt 0:00:09]} Bf5 {[%emt 0:00:16]} 15. Bb5+ {[%emt 0:00:04]} Ke7 {[%emt 0:00:16]} 16. O-O {[%emt 0:00:25]} Nf6 {[%emt 0:00:41]} 17. Rxf5 {[%emt 0:00:11]} g6 {[%emt 0:00:45]} 18. Ba3+ {[%emt 0:00:14]} Kd8 {[%emt 0:00:37]} 19. Nxf7+ {[%emt 0:00:06]} Kc8 {[%emt 0:00:48]} 20. Rxf6 {[%emt 0:00:09]} 1-0

[Event "56th Biel Festival Rapid 2023"]
[Site "Biel"]
[Date "2024.04.13"]
[Round "2.47"]
[White "Caduff Simon"]
[Black "Gillieron, Jean-Marc"]
[Result "*"]
[WhiteElo "1610"]
[BlackElo "1746"]
[PlyCount "67"]
[EventDate "2023.07.16"]
[EventType "swiss"]
[EventCountry "SUI"]
[TimeControl "900+5"]

1. e4 {[%emt 0:00:04]} Nf6 {[%emt 0:00:02]} 2. Nc3 {[%emt 0:00:02]} d6 {[%emt 0:00:02]} 3. Nf3 {[%emt 0:00:02]} g6 {[%emt 0:00:02]} 4. Bc4 {[%emt 0:00:05]} Bg7 {[%emt 0:00:02]} 5. d3 {[%emt 0:00:02]} c5 {[%emt 0:00:04]} 6. e5 {[%emt 0:00:39]} dxe5 {[%emt 0:00:50]} 7. Nxe5 {[%emt 0:00:02]} O-O {[%emt 0:00:06]} 8. Be3 {[%emt 0:00:29]} Qc7 {[%emt 0:00:30]} 9. Nf3 {[%emt 0:00:49]} Ng4 {[%emt 0:00:22]} 10. Nd5 {[%emt 0:00:38]} Qa5+ {[%emt 0:01:41]} 11. Bd2 {[%emt 0:00:33]} Qd8 {[%emt 0:00:08]} 12. Bc3 {[%emt 0:01:48]} Nc6 {[%emt 0:01:22]} 13. h3 {[%emt 0:00:33]} Nge5 {[%emt 0:00:24]} 14. O-O {[%emt 0:00:50]} Nxc4 {[%emt 0:00:05]} 15. dxc4 {[%emt 0:00:29]} Bf5 {[%emt 0:02:03]} 16. Bxg7 {[%emt 0:01:07]} Kxg7 {[%emt 0:00:03]} 17. Qe2 {[%emt 0:00:52]} Be6 {[%emt 0:02:36]} 18. Rad1 {[%emt 0:00:50]} Bxd5 {[%emt 0:00:32]} 19. cxd5 {[%emt 0:00:12]} Nb8 {[%emt 0:01:16]} 20. Rfe1 {[%emt 0:00:23]} Re8 {[%emt 0:00:10]} 21. d6 {[%emt 0:00:32]} e6 {[%emt 0:00:26]} 22. Qe5+ {[%emt 0:00:22]} Kg8 {[%emt 0:00:03]} 23. Qxc5 {[%emt 0:00:17]} Nc6 {[%emt 0:00:04]} 24. Ne5 {[%emt 0:00:17]} Nxe5 {[%emt 0:00:09]} 25. Qxe5 {[%emt 0:00:27]} Qd7 {[%emt 0:00:18]} 26. Re3 {[%emt 0:00:34]} Rac8 {[%emt 0:00:07]} 27. Rc3 {[%emt 0:00:07]} Rxc3 {[%emt 0:00:12]} 28. Qxc3 {[%emt 0:00:01]} Rc8 {[%emt 0:00:04]} 29. Qb3 {[%emt 0:00:57]} b6 {[%emt 0:00:22]} 30. c4 {[%emt 0:00:23]} Rc5 {[%emt 0:01:38]} 31. Qd3 {[%emt 0:00:25]} a5 {[%emt 0:00:15]} 32. a3 {[%emt 0:00:07]} b5 {[%emt 0:01:03]} 33. cxb5 {[%emt 0:00:04]} Rd5 {[%emt 0:00:33]} 34. Qf3 {[%emt 0:00:38]} *

[Event "56th Biel Festival Rapid 2023"]
[Site "Biel"]
[Date "2024.04.13"]
[Round "2.49"]
[White "Ranieri, Pierpaolo"]
[Black "Baghirov, Elmar"]
[Result "1-0"]
[WhiteElo "1753"]
[BlackElo "1178"]
[PlyCount "53"]
[EventDate "2023.07.16"]
[EventType "swiss"]
[EventCountry "SUI"]
[TimeControl "900+5"]

1. d4 {[%emt 0:00:03]} d5 {[%emt 0:00:02]} 2. Nf3 {[%emt 0:00:01]} Nf6 {[%emt 0:00:13]} 3. e3 {[%emt 0:00:02]} Nc6 {[%emt 0:00:14]} 4. Bd3 {[%emt 0:00:08]} Bg4 {[%emt 0:00:19]} 5. c4 {[%emt 0:00:03]} e6 {[%emt 0:00:14]} 6. h3 {[%emt 0:00:10]} Bh5 {[%emt 0:00:08]} 7. Qb3 {[%emt 0:00:05]} Bxf3 {[%emt 0:00:34]} 8. gxf3 {[%emt 0:00:04]} b6 {[%emt 0:00:33]} 9. Nc3 {[%emt 0:00:06]} Bd6 {[%emt 0:01:34]} 10. cxd5 {[%emt 0:00:14]} exd5 {[%emt 0:00:10]} 11. Bb5 {[%emt 0:00:13]} Qd7 {[%emt 0:00:30]} 12. Qa4 {[%emt 0:00:05]} O-O {[%emt 0:01:36]} 13. Bxc6 {[%emt 0:00:03]} b5 {[%emt 0:00:51]} 14. Qxb5 {[%emt 0:00:49]} Rab8 {[%emt 0:00:35]} 15. Bxd7 {[%emt 0:00:04]} Rxb5 {[%emt 0:00:03]} 16. Bxb5 {[%emt 0:00:02]} Rb8 {[%emt 0:00:08]} 17. Bc6 {[%emt 0:00:26]} Bb4 {[%emt 0:00:17]} 18. Bd2 {[%emt 0:00:16]} Rb6 {[%emt 0:00:13]} 19. Ba4 {[%emt 0:00:25]} c5 {[%emt 0:00:28]} 20. dxc5 {[%emt 0:00:12]} Bxc5 {[%emt 0:00:01]} 21. Bb3 {[%emt 0:00:03]} d4 {[%emt 0:00:25]} 22. Na4 {[%emt 0:00:23]} Rb5 {[%emt 0:00:44]} 23. Nxc5 {[%emt 0:00:06]} Rxc5 {[%emt 0:00:03]} 24. Rc1 {[%emt 0:00:04]} Re5 {[%emt 0:00:45]} 25. Rc8+ {[%emt 0:00:06]} Ne8 {[%emt 0:00:05]} 26. Ba4 {[%emt 0:00:07]} dxe3 {[%emt 0:00:25]} 27. fxe3 {[%emt 0:00:18]} 1-0

[Event "56th Biel Festival Rapid 2023"]
[Site "Biel"]
[Date "2024.04.13"]
[Round "3.1"]
[White "Haimovich, Tal"]
[Black "Quesada Perez, Luis Ernesto"]
[Result "*"]
[WhiteElo "2374"]
[BlackElo "2553"]
[PlyCount "20"]
[EventDate "2023.07.16"]
[EventType "swiss"]
[EventCountry "SUI"]
[TimeControl "900+5"]

1. Nf3 {[%emt 0:00:03]} d5 {[%emt 0:00:02]} 2. d4 {[%emt 0:00:06]} Nf6 {[%emt 0:00:03]} 3. c4 {[%emt 0:00:02]} c6 {[%emt 0:00:06]} 4. Nc3 {[%emt 0:00:30]} dxc4 {[%emt 0:00:07]} 5. a4 {[%emt 0:00:13]} Bf5 {[%emt 0:00:03]} 6. e3 {[%emt 0:00:02]} e6 {[%emt 0:00:02]} 7. Bxc4 {[%emt 0:00:02]} Bb4 {[%emt 0:00:02]} 8. O-O {[%emt 0:00:03]} Nbd7 {[%emt 0:00:02]} 9. Qe2 {[%emt 0:00:07]} Bg6 {[%emt 0:00:04]} 10. Rd1 {[%emt 0:01:20]} O-O {[%emt 0:00:12]} *

[Event "56th Biel Festival Rapid 2023"]
[Site "Biel"]
[Date "2024.04.13"]
[Round "3.3"]
[White "Vincenti, Leonardo"]
[Black "Yuffa, Daniil"]
[Result "*"]
[WhiteElo "2117"]
[BlackElo "2603"]
[PlyCount "20"]
[EventDate "2023.07.16"]
[EventType "swiss"]
[EventCountry "SUI"]
[TimeControl "900+5"]

1. e4 {[%emt 0:00:01]} c6 {[%emt 0:00:06]} 2. d4 {[%emt 0:00:01]} d5 {[%emt 0:00:02]} 3. exd5 {[%emt 0:00:02]} cxd5 {[%emt 0:00:03]} 4. Bd3 {[%emt 0:00:01]} Nc6 {[%emt 0:00:04]} 5. c3 {[%emt 0:00:06]} Qc7 {[%emt 0:00:03]} 6. Ne2 {[%emt 0:00:04]} Bg4 {[%emt 0:00:19]} 7. f3 {[%emt 0:00:12]} Bd7 {[%emt 0:00:06]} 8. O-O {[%emt 0:00:03]} e5 {[%emt 0:00:17]} 9. dxe5 {[%emt 0:00:01]} Nxe5 {[%emt 0:00:04]} 10. Nd4 {[%emt 0:00:21]} Bd6 {[%emt 0:00:34]} *

[Event "56th Biel Festival Rapid 2023"]
[Site "Biel"]
[Date "2024.04.13"]
[Round "3.6"]
[White "Ouellet, Maili-Jade"]
[Black "Pranav Anand"]
[Result "*"]
[WhiteElo "2201"]
[BlackElo "2510"]
[PlyCount "24"]
[EventDate "2023.07.16"]
[EventType "swiss"]
[EventCountry "SUI"]
[TimeControl "900+5"]

1. d4 {[%emt 0:00:03]} Nf6 {[%emt 0:00:01]} 2. c4 {[%emt 0:00:02]} g6 {[%emt 0:00:03]} 3. Nc3 {[%emt 0:00:04]} Bg7 {[%emt 0:00:02]} 4. e4 {[%emt 0:00:02]} d6 {[%emt 0:00:02]} 5. f4 {[%emt 0:00:02]} c5 {[%emt 0:00:12]} 6. d5 {[%emt 0:00:02]} O-O {[%emt 0:00:02]} 7. Nf3 {[%emt 0:00:04]} Bg4 {[%emt 0:00:01]} 8. Be2 {[%emt 0:00:01]} e6 {[%emt 0:00:34]} 9. O-O {[%emt 0:00:07]} exd5 {[%emt 0:00:04]} 10. cxd5 {[%emt 0:00:03]} Nfd7 {[%emt 0:00:23]} 11. h3 {[%emt 0:00:30]} Bxf3 {[%emt 0:00:02]} 12. Bxf3 {[%emt 0:00:01]} Na6 {[%emt 0:00:41]} *

[Event "56th Biel Festival Rapid 2023"]
[Site "Biel"]
[Date "2024.04.13"]
[Round "3.8"]
[White "Kocharin, Timur"]
[Black "Huang, Renjie"]
[Result "*"]
[WhiteElo "2225"]
[BlackElo "2445"]
[PlyCount "24"]
[EventDate "2023.07.16"]
[EventType "swiss"]
[EventCountry "SUI"]
[TimeControl "900+5"]

1. d4 {[%emt 0:00:21]} Nf6 {[%emt 0:00:06]} 2. c4 {[%emt 0:00:11]} g6 {[%emt 0:00:02]} 3. Nc3 {[%emt 0:00:03]} d5 {[%emt 0:00:01]} 4. Nf3 {[%emt 0:00:01]} Bg7 {[%emt 0:00:01]} 5. cxd5 {[%emt 0:00:04]} Nxd5 {[%emt 0:00:02]} 6. e4 {[%emt 0:00:04]} Nxc3 {[%emt 0:00:02]} 7. bxc3 {[%emt 0:00:02]} c5 {[%emt 0:00:02]} 8. Bb5+ {[%emt 0:00:06]} Nc6 {[%emt 0:00:16]} 9. O-O {[%emt 0:00:07]} O-O {[%emt 0:00:14]} 10. Bxc6 {[%emt 0:00:15]} bxc6 {[%emt 0:00:01]} 11. Qc2 {[%emt 0:00:02]} Qa5 {[%emt 0:00:39]} 12. Be3 {[%emt 0:00:19]} Rb8 {[%emt 0:00:17]} *

[Event "56th Biel Festival Rapid 2023"]
[Site "Biel"]
[Date "2024.04.13"]
[Round "3.10"]
[White "Begdullayev, Tamerlan"]
[Black "Materia, Marco"]
[Result "*"]
[WhiteElo "1783"]
[BlackElo "2436"]
[PlyCount "23"]
[EventDate "2023.07.16"]
[EventType "swiss"]
[EventCountry "SUI"]
[TimeControl "900+5"]

1. c4 {[%emt 0:00:03]} e6 {[%emt 0:00:04]} 2. Nc3 {[%emt 0:00:06]} d5 {[%emt 0:00:01]} 3. d4 {[%emt 0:00:02]} Nf6 {[%emt 0:00:05]} 4. cxd5 {[%emt 0:00:03]} exd5 {[%emt 0:00:02]} 5. Bg5 {[%emt 0:00:03]} Be7 {[%emt 0:00:02]} 6. e3 {[%emt 0:00:09]} O-O {[%emt 0:00:06]} 7. Bd3 {[%emt 0:00:06]} c6 {[%emt 0:00:11]} 8. Nf3 {[%emt 0:00:13]} Re8 {[%emt 0:00:06]} 9. Qc2 {[%emt 0:00:10]} Nbd7 {[%emt 0:00:02]} 10. O-O {[%emt 0:00:05]} Nf8 {[%emt 0:00:38]} 11. Rab1 {[%emt 0:00:50]} a5 {[%emt 0:00:03]} 12. a3 {[%emt 0:00:08]} *

[Event "56th Biel Festival Rapid 2023"]
[Site "Biel"]
[Date "2024.04.13"]
[Round "3.18"]
[White "Illijin Neboisa"]
[Black "Voland, Robin"]
[Result "*"]
[WhiteElo "2140"]
[BlackElo "1930"]
[PlyCount "20"]
[EventDate "2023.07.16"]
[EventType "swiss"]
[EventCountry "SUI"]
[TimeControl "900+5"]

1. e4 {[%emt 0:00:07]} e6 {[%emt 0:00:10]} 2. d4 {[%emt 0:00:05]} d5 {[%emt 0:00:02]} 3. e5 {[%emt 0:00:03]} c5 {[%emt 0:00:01]} 4. c3 {[%emt 0:00:02]} Nc6 {[%emt 0:00:02]} 5. Nf3 {[%emt 0:00:01]} Bd7 {[%emt 0:00:02]} 6. Be2 {[%emt 0:00:02]} f6 {[%emt 0:00:02]} 7. O-O {[%emt 0:00:16]} fxe5 {[%emt 0:00:02]} 8. Nxe5 {[%emt 0:00:09]} Nxe5 {[%emt 0:00:03]} 9. dxe5 {[%emt 0:00:02]} Qc7 {[%emt 0:00:03]} 10. Re1 {[%emt 0:01:01]} O-O-O {[%emt 0:00:09]} *

[Event "56th Biel Festival Rapid 2023"]
[Site "Biel"]
[Date "2024.04.13"]
[Round "3.29"]
[White "Piazza, Carlo"]
[Black "Ranieri, Pierpaolo"]
[Result "*"]
[WhiteElo "2106"]
[BlackElo "1753"]
[PlyCount "22"]
[EventDate "2023.07.16"]
[EventType "swiss"]
[EventCountry "SUI"]
[TimeControl "900+5"]

1. e4 {[%emt 0:00:06]} d5 {[%emt 0:01:00]} 2. exd5 {[%emt 0:00:02]} Qxd5 {[%emt 0:00:01]} 3. Nc3 {[%emt 0:00:01]} Qd8 {[%emt 0:00:01]} 4. d4 {[%emt 0:00:02]} Nf6 {[%emt 0:00:02]} 5. Bc4 {[%emt 0:00:01]} a6 {[%emt 0:00:02]} 6. Bb3 {[%emt 0:00:03]} b5 {[%emt 0:00:05]} 7. Be3 {[%emt 0:01:03]} Bb7 {[%emt 0:00:02]} 8. f3 {[%emt 0:00:01]} e6 {[%emt 0:00:06]} 9. Qd2 {[%emt 0:00:03]} c5 {[%emt 0:00:11]} 10. dxc5 {[%emt 0:00:04]} Qxd2+ {[%emt 0:00:03]} 11. Bxd2 {[%emt 0:00:02]} Bxc5 {[%emt 0:00:15]} *

[Event "56th Biel Festival Rapid 2023"]
[Site "Biel"]
[Date "2024.04.13"]
[Round "3.30"]
[White "Aeschbacher, Dimitri"]
[Black "Meier, Peter"]
[Result "*"]
[WhiteElo "1761"]
[BlackElo "2033"]
[PlyCount "24"]
[EventDate "2023.07.16"]
[EventType "swiss"]
[EventCountry "SUI"]
[TimeControl "900+5"]

1. e4 {[%emt 0:00:03]} c5 {[%emt 0:00:02]} 2. Nf3 {[%emt 0:00:01]} g6 {[%emt 0:00:02]} 3. c3 {[%emt 0:00:04]} Bg7 {[%emt 0:00:02]} 4. d4 {[%emt 0:00:01]} cxd4 {[%emt 0:00:02]} 5. cxd4 {[%emt 0:00:00]} d5 {[%emt 0:00:01]} 6. e5 {[%emt 0:00:03]} Nc6 {[%emt 0:00:02]} 7. Nc3 {[%emt 0:00:02]} Bg4 {[%emt 0:00:03]} 8. Bb5 {[%emt 0:00:05]} e6 {[%emt 0:00:11]} 9. h3 {[%emt 0:00:19]} Bxf3 {[%emt 0:00:02]} 10. Qxf3 {[%emt 0:00:02]} Nge7 {[%emt 0:00:14]} 11. Rf1 {[%emt 0:00:06]} O-O {[%emt 0:00:03]} 12. Qd1 {[%emt 0:00:13]} Qb6 {[%emt 0:00:09]} *

[Event "56th Biel Festival Rapid 2023"]
[Site "Biel"]
[Date "2024.04.13"]
[Round "5.1"]
[White "Pranav Anand"]
[Black "Quesada Perez, Luis Ernesto"]
[Result "*"]
[WhiteElo "2510"]
[BlackElo "2553"]
[PlyCount "40"]
[EventDate "2023.07.16"]
[EventType "swiss"]
[EventCountry "SUI"]
[TimeControl "900+5"]

1. d4 {[%emt 0:00:03]} Nf6 {[%emt 0:00:02]} 2. c4 {[%emt 0:00:01]} c6 {[%emt 0:00:16]} 3. Nc3 {[%emt 0:00:04]} d5 {[%emt 0:00:06]} 4. e3 {[%emt 0:00:06]} e6 {[%emt 0:00:11]} 5. Nf3 {[%emt 0:00:00]} Nbd7 {[%emt 0:00:02]} 6. Qc2 {[%emt 0:00:02]} Bd6 {[%emt 0:00:02]} 7. g4 {[%emt 0:00:00]} Nxg4 {[%emt 0:01:53]} 8. Rg1 {[%emt 0:00:01]} Qf6 {[%emt 0:00:02]} 9. Rxg4 {[%emt 0:00:00]} Qxf3 {[%emt 0:00:02]} 10. Rxg7 {[%emt 0:00:00]} Nf6 {[%emt 0:00:02]} 11. Bg2 {[%emt 0:00:03]} Qh5 {[%emt 0:00:11]} 12. e4 {[%emt 0:00:00]} dxe4 {[%emt 0:00:12]} 13. Be3 {[%emt 0:00:52]} Bd7 {[%emt 0:00:27]} 14. Rg5 {[%emt 0:00:22]} Qh4 {[%emt 0:00:05]} 15. O-O-O {[%emt 0:01:29]} Bf4 {[%emt 0:00:34]} 16. Rg3 {[%emt 0:01:54]} Bxe3+ {[%emt 0:00:25]} 17. fxe3 {[%emt 0:00:39]} O-O-O {[%emt 0:00:33]} 18. Bxe4 {[%emt 0:00:31]} Rhg8 {[%emt 0:00:33]} 19. Rdg1 {[%emt 0:00:51]} Rxg3 {[%emt 0:00:51]} 20. Rxg3 {[%emt 0:00:02]} Ng4 {[%emt 0:02:00]} *

[Event "56th Biel Festival Rapid 2023"]
[Site "Biel"]
[Date "2024.04.13"]
[Round "5.2"]
[White "Materia, Marco"]
[Black "Rodrigue-Lemieux, Shawn"]
[Result "*"]
[WhiteElo "2436"]
[BlackElo "2495"]
[PlyCount "56"]
[EventDate "2023.07.16"]
[EventType "swiss"]
[EventCountry "SUI"]
[TimeControl "900+5"]

1. d4 {[%emt 0:00:03]} Nf6 {[%emt 0:00:02]} 2. c4 {[%emt 0:00:01]} e6 {[%emt 0:00:01]} 3. Nf3 {[%emt 0:00:02]} d5 {[%emt 0:00:02]} 4. Nc3 {[%emt 0:00:01]} c6 {[%emt 0:00:10]} 5. Bg5 {[%emt 0:00:02]} h6 {[%emt 0:00:06]} 6. Bxf6 {[%emt 0:00:04]} Qxf6 {[%emt 0:00:02]} 7. e3 {[%emt 0:00:01]} Nd7 {[%emt 0:00:02]} 8. Bd3 {[%emt 0:00:13]} g6 {[%emt 0:00:06]} 9. O-O {[%emt 0:00:06]} Bg7 {[%emt 0:00:05]} 10. e4 {[%emt 0:00:10]} dxc4 {[%emt 0:00:11]} 11. Bxc4 {[%emt 0:00:24]} O-O {[%emt 0:00:03]} 12. e5 {[%emt 0:00:13]} Qe7 {[%emt 0:00:02]} 13. Qe2 {[%emt 0:00:18]} b5 {[%emt 0:00:40]} 14. Bd3 {[%emt 0:00:19]} b4 {[%emt 0:00:18]} 15. Ne4 {[%emt 0:00:08]} c5 {[%emt 0:00:11]} 16. dxc5 {[%emt 0:01:26]} Nxc5 {[%emt 0:00:07]} 17. Nxc5 {[%emt 0:00:29]} Qxc5 {[%emt 0:00:02]} 18. Rfc1 {[%emt 0:00:18]} Qa5 {[%emt 0:00:22]} 19. a3 {[%emt 0:00:30]} Bb7 {[%emt 0:00:16]} 20. Be4 {[%emt 0:00:47]} Qb6 {[%emt 0:00:36]} 21. axb4 {[%emt 0:00:16]} Qxb4 {[%emt 0:00:23]} 22. Rc4 {[%emt 0:00:06]} Qb6 {[%emt 0:00:22]} 23. Bxb7 {[%emt 0:00:06]} Qxb7 {[%emt 0:00:01]} 24. h4 {[%emt 0:00:50]} Rfd8 {[%emt 0:00:08]} 25. Qc2 {[%emt 0:00:17]} Rd7 {[%emt 0:00:26]} 26. Rc1 {[%emt 0:01:09]} Rad8 {[%emt 0:00:21]} 27. Rc7 {[%emt 0:00:33]} Rxc7 {[%emt 0:01:36]} 28. Qxc7 {[%emt 0:00:02]} Rb8 {[%emt 0:00:01]} *

[Event "56th Biel Festival Rapid 2023"]
[Site "Biel"]
[Date "2024.04.13"]
[Round "5.3"]
[White "Bharath Subramaniyam H"]
[Black "Vantika Agrawal"]
[Result "*"]
[WhiteElo "2488"]
[BlackElo "2428"]
[PlyCount "29"]
[EventDate "2023.07.16"]
[EventType "swiss"]
[EventCountry "SUI"]
[TimeControl "900+5"]

1. d4 {[%emt 0:00:09]} Nf6 {[%emt 0:00:04]} 2. Nf3 {[%emt 0:00:03]} g6 {[%emt 0:00:05]} 3. Nc3 {[%emt 0:00:07]} d5 {[%emt 0:00:01]} 4. Bf4 {[%emt 0:00:02]} Bg7 {[%emt 0:00:01]} 5. Nb5 {[%emt 0:00:01]} Na6 {[%emt 0:00:02]} 6. e3 {[%emt 0:00:02]} O-O {[%emt 0:00:02]} 7. Be2 {[%emt 0:00:02]} Ne4 {[%emt 0:00:57]} 8. O-O {[%emt 0:00:22]} c6 {[%emt 0:00:30]} 9. Na3 {[%emt 0:00:40]} c5 {[%emt 0:00:38]} 10. Be5 {[%emt 0:00:50]} f6 {[%emt 0:01:06]} 11. Bg3 {[%emt 0:00:54]} Nxg3 {[%emt 0:00:42]} 12. hxg3 {[%emt 0:00:01]} cxd4 {[%emt 0:00:09]} 13. Nxd4 {[%emt 0:05:54]} e5 {[%emt 0:01:32]} 14. Nb3 {[%emt 0:00:01]} Be6 {[%emt 0:01:00]} 15. c4 {[%emt 0:00:13]} *